Workbook

Sheet Спецификация
A1: Счет | B1: Начало | C1: Окончание | D1: Контрагент | E1: Продукция | F1: Цена | G1: Договор | H1: № спецификации | I1: Завел (Ответственный)
A2: =IF(Спецификация[[#This Row],[Начало]]="","",(SUMPRODUCT(1/COUNTIF($A$1:A1,$A$1:A1)))) -> 1 | B2: 2018-01-01 | C2: 2018-03-02 | D2: ООО "Атика" | E2: БСТ В7,5 П3 F100 W2 (Гравий) | F2: 2900
A3: =IF(Спецификация[[#This Row],[Начало]]="","",(SUMPRODUCT(1/COUNTIF($A$1:A2,$A$1:A2)))) -> 2 | B3: 2018-03-03 | C3: 2018-09-05 | D3: ООО "Атика" | E3: БСТ В7,5 П3 F100 W2 (Гравий) | F3: 3200
A4: =IF(Спецификация[[#This Row],[Начало]]="","",(SUMPRODUCT(1/COUNTIF($A$1:A3,$A$1:A3)))) -> 3 | B4: 2018-01-01 | D4: ООО "Атика" | E4: БСТ В12,5 П3 F100 W2 (Гравий) | F4: 3000
A5: =IF(Спецификация[[#This Row],[Начало]]="","",(SUMPRODUCT(1/COUNTIF($A$1:A4,$A$1:A4)))) -> 4 | B5: 2018-01-01 | D5: ООО "Атика" | E5: БСТ В12,5 П4 F100 W2 (Гравий) | F5: 3000
A6: =IF(Спецификация[[#This Row],[Начало]]="","",(SUMPRODUCT(1/COUNTIF($A$1:A5,$A$1:A5)))) -> 5 | B6: 2018-01-01 | D6: ООО "Атика" | E6: БСТ В15 П3 F150 W6 (Гравий) | F6: 3150
A7: =IF(Спецификация[[#This Row],[Начало]]="","",(SUMPRODUCT(1/COUNTIF($A$1:A6,$A$1:A6)))) -> 6 | B7: 2018-01-01 | D7: ООО "Атика" | E7: БСТ В15 П3 F150 W6 (Гравий) | F7: 3150
A8: =IF(Спецификация[[#This Row],[Начало]]="","",(SUMPRODUCT(1/COUNTIF($A$1:A7,$A$1:A7)))) -> 7 | B8: 2018-01-01 | D8: ООО "Атика" | E8: БСТ В20 П3 F150 W8 (Гравий) | F8: 3300
A9: =IF(Спецификация[[#This Row],[Начало]]="","",(SUMPRODUCT(1/COUNTIF($A$1:A8,$A$1:A8)))) -> 8 | B9: 2018-01-01 | D9: ООО "Атика" | E9: БСТ В20 П4 F150 W8 (Гравий) | F9: 3300
A10: =IF(Спецификация[[#This Row],[Начало]]="","",(SUMPRODUCT(1/COUNTIF($A$1:A9,$A$1:A9)))) -> 9 | B10: 2018-01-01 | D10: ООО "Атика" | E10: БСТ В22,5 П3 F200 W8 (Гравий) | F10: 3400
A11: =IF(Спецификация[[#This Row],[Начало]]="","",(SUMPRODUCT(1/COUNTIF($A$1:A10,$A$1:A10)))) -> 10 | B11: 2018-01-01 | D11: ООО "Атика" | E11: БСТ В22,5 П4 F200 W8 (Гравий) | F11: 3400
A12: =IF(Спецификация[[#This Row],[Начало]]="","",(SUMPRODUCT(1/COUNTIF($A$1:A11,$A$1:A11)))) -> 11 | B12: 2018-01-01 | D12: ООО "Атика" | E12: БСТ В25 П3 F200 W8 (Гравий) | F12: 3450
A13: =IF(Спецификация[[#This Row],[Начало]]="","",(SUMPRODUCT(1/COUNTIF($A$1:A12,$A$1:A12)))) -> 12 | B13: 2018-01-01 | D13: ООО "Атика" | E13: БСТ В25 П4 F200 W8 (Гравий) | F13: 3450
A14: =IF(Спецификация[[#This Row],[Начало]]="","",(SUMPRODUCT(1/COUNTIF($A$1:A13,$A$1:A13)))) -> 13 | B14: 2018-01-01 | D14: ООО "Атика" | E14: БСТ В25 П3 F300 W10 (Гранит) | F14: 3650
A15: =IF(Спецификация[[#This Row],[Начало]]="","",(SUMPRODUCT(1/COUNTIF($A$1:A14,$A$1:A14)))) -> 14 | B15: 2018-01-01 | D15: ООО "Атика" | E15: БСТ В25 П4 F300 W10 (Гранит) | F15: 3650
A16: =IF(Спецификация[[#This Row],[Начало]]="","",(SUMPRODUCT(1/COUNTIF($A$1:A15,$A$1:A15)))) -> 
A17: =IF(Спецификация[[#This Row],[Начало]]="","",(SUMPRODUCT(1/COUNTIF($A$1:A16,$A$1:A16)))) -> 
A18: =IF(Спецификация[[#This Row],[Начало]]="","",(SUMPRODUCT(1/COUNTIF($A$1:A17,$A$1:A17)))) -> 
A19: =IF(Спецификация[[#This Row],[Начало]]="","",(SUMPRODUCT(1/COUNTIF($A$1:A18,$A$1:A18)))) -> 
A20: =IF(Спецификация[[#This Row],[Начало]]="","",(SUMPRODUCT(1/COUNTIF($A$1:A19,$A$1:A19)))) -> 
A21: =IF(Спецификация[[#This Row],[Начало]]="","",(SUMPRODUCT(1/COUNTIF($A$1:A20,$A$1:A20)))) -> 

Sheet Контрагент
A1: Контрагент | B1: Фамилия | C1: Имя | D1: Должность | E1: Мобильный телефон
A2: ООО "Атика" | B2: Шевченко | C2: Дмитрий | D2: Ген.Директор
A3: ООО "БЭСТ БЕТОН" | B3: Супрун | C3: Станислав | D3: Ген.Директор
A4: ООО "Комфорт Плюс" | B4: Супрун | C4: Игорь | D4: Ген.Директор
A5: ООО "Фтор Мед Царицыно" | B5: Захаров | C5: Сергей | D5: Ген.Директор
A6: Ч/Л "Мифтахов" | B6: Мифтахов | C6: Илья | D6: Частное лицо
A7: Ч/Л "Рустам" | D7: Частное лицо

Sheet АБС
A1: Поставщик | B1: Госномер ТС | C1: Водитель | D1: Телефон | E1: Марка | F1: Объем | G1: Ось | H1: Порожний
A2: И/П "Торопов" | B2: н265ко77 | C2: Саидов Эргашали | D2: 8-925-209-15-36 | E2: Камаз | F2: 9 | G2: 4-х осный | H2: =IF(АБС[[#This Row],[Ось]]="4-х осный",8,IF(АБС[[#This Row],[Ось]]="","",7)) -> 8
A3: ООО "Аист" | B3: н877ке77 | C3: Устинов Рустам | D3: 8-925-082-29-95 | E3: Маз | F3: 9 | G3: 4-х осный | H3: =IF(АБС[[#This Row],[Ось]]="4-х осный",8,IF(АБС[[#This Row],[Ось]]="","",7)) -> 8
A4: ООО "Атика" | B4: е922тм777 | E4: Камаз | F4: 8 | G4: 4-х осный | H4: =IF(АБС[[#This Row],[Ось]]="4-х осный",8,IF(АБС[[#This Row],[Ось]]="","",7)) -> 8
A5: ООО "Атика" | B5: т956ск777 | E5: Камаз | F5: 8 | G5: 4-х осный | H5: =IF(АБС[[#This Row],[Ось]]="4-х осный",8,IF(АБС[[#This Row],[Ось]]="","",7)) -> 8
A6: ООО "Атика" | B6: н001тс777 | E6: Камаз | F6: 8 | G6: 4-х осный | H6: =IF(АБС[[#This Row],[Ось]]="4-х осный",8,IF(АБС[[#This Row],[Ось]]="","",7)) -> 8
A7: Ч/Л "Райнур" | B7: в580ух199 | C7: Каримов Райнур | D7: 8-925-255-51-23 | E7: Камаз | F7: 7 | G7: 3-х осный | H7: =IF(АБС[[#This Row],[Ось]]="4-х осный",8,IF(АБС[[#This Row],[Ось]]="","",7)) -> 7
A8: Спецстрой | B8: к187ус77 | C8: Степанян Виталий | D8: 8-925-208-60 / 8-999-800-34-05 | E8: Ман | F8: 6 | G8: 3-х осный | H8: =IF(АБС[[#This Row],[Ось]]="4-х осный",8,IF(АБС[[#This Row],[Ось]]="","",7)) -> 7
A9: Ч/Л "Максим" | B9: к553со62 | C9: Ярошенко Андрей | D9: 8-909-408-44-40 | E9: Ивеко | F9: 12 | G9: 4-х осный | H9: =IF(АБС[[#This Row],[Ось]]="4-х осный",8,IF(АБС[[#This Row],[Ось]]="","",7)) -> 8
A10: Ч/Л "Максим" | B10: о494кн161 | C10: Семенов Сергей | D10: 8-966-144-67-08 | E10: Ман | F10: 10 | G10: 4-х осный | H10: =IF(АБС[[#This Row],[Ось]]="4-х осный",8,IF(АБС[[#This Row],[Ось]]="","",7)) -> 8
A11: Ч/Л "Мифтахов" | B11: у573мт199 | C11: Мифтахов Илья | D11: 8-926-547-47-79 | E11: Рено | F11: 8 | G11: 4-х осный | H11: =IF(АБС[[#This Row],[Ось]]="4-х осный",8,IF(АБС[[#This Row],[Ось]]="","",7)) -> 8
A12: Ч/Л "Наумчик" | B12: т564вт64 | C12: Наумчик Сергей | D12: 8-926-863-72-26 | E12: Ман | F12: 10 | G12: 3-х осный | H12: =IF(АБС[[#This Row],[Ось]]="4-х осный",8,IF(АБС[[#This Row],[Ось]]="","",7)) -> 7
A13: Ч/Л "Рустам" | B13: м954ко10 | C13: Глявин Николай | D13: 8-961-108-60-31 | E13: Вольво | F13: 10 | G13: 4-х осный | H13: =IF(АБС[[#This Row],[Ось]]="4-х осный",8,IF(АБС[[#This Row],[Ось]]="","",7)) -> 8
A14: Ч/Л "Рустам" | B14: м954ко10 | C14: Жданкин Иван | D14: 8-926-844-59-19 | E14: Вольво | F14: 10 | G14: 4-х осный | H14: =IF(АБС[[#This Row],[Ось]]="4-х осный",8,IF(АБС[[#This Row],[Ось]]="","",7)) -> 8
A15: Ч/Л "Филипов" | B15: м646ум76 | C15: Филипов Григорий | D15: 8-936-777-94-55 | E15: Ман | F15: 11 | G15: 4-х осный | H15: =IF(АБС[[#This Row],[Ось]]="4-х осный",8,IF(АБС[[#This Row],[Ось]]="","",7)) -> 8
H16: =IF(АБС[[#This Row],[Ось]]="4-х осный",8,IF(АБС[[#This Row],[Ось]]="","",7)) -> 
H17: =IF(АБС[[#This Row],[Ось]]="4-х осный",8,IF(АБС[[#This Row],[Ось]]="","",7)) -> 
H18: =IF(АБС[[#This Row],[Ось]]="4-х осный",8,IF(АБС[[#This Row],[Ось]]="","",7)) -> 
H19: =IF(АБС[[#This Row],[Ось]]="4-х осный",8,IF(АБС[[#This Row],[Ось]]="","",7)) -> 
H20: =IF(АБС[[#This Row],[Ось]]="4-х осный",8,IF(АБС[[#This Row],[Ось]]="","",7)) -> 
H21: =IF(АБС[[#This Row],[Ось]]="4-х осный",8,IF(АБС[[#This Row],[Ось]]="","",7)) -> 
H22: =IF(АБС[[#This Row],[Ось]]="4-х осный",8,IF(АБС[[#This Row],[Ось]]="","",7)) -> 
H23: =IF(АБС[[#This Row],[Ось]]="4-х осный",8,IF(АБС[[#This Row],[Ось]]="","",7)) -> 
H24: =IF(АБС[[#This Row],[Ось]]="4-х осный",8,IF(АБС[[#This Row],[Ось]]="","",7)) -> 
H25: =IF(АБС[[#This Row],[Ось]]="4-х осный",8,IF(АБС[[#This Row],[Ось]]="","",7)) -> 
H26: =IF(АБС[[#This Row],[Ось]]="4-х осный",8,IF(АБС[[#This Row],[Ось]]="","",7)) -> 
H27: =IF(АБС[[#This Row],[Ось]]="4-х осный",8,IF(АБС[[#This Row],[Ось]]="","",7)) -> 

Sheet Поставщик
A1: Поставщик | B1: Материал | C1: Вид
A2: ООО "Атика" | B2: Цемент | C2: Т/С
A3: ООО "БЭСТ БЕТОН" | B3: Песок | C3: Ж/Д
A4: ООО "Комфорт Плюс" | B4: Гранит
A5: ООО "Фтор Мед Царицыно" | B5: Гравий
A6: Ч/Л "Мифтахов" | B6: Вторичка
A7: Ч/Л "Рустам" | B7: СП-3
B8: Мурапор
B9: Криопласт

Sheet Цены на инертные
A1: Начало | B1: Окончание | C1: Цемент | D1: Песок строительный | E1: Песок растворный | F1: Гранит | G1: Гравий | H1: Вторичка | I1: Вода | J1: СП-3 | K1: Мурапор | L1: Криопласт
A2: 2018-01-01 | B2: 2018-03-02 | C2: 5 | D2: 580 | E2: 1500 | F2: 1800 | G2: 1510 | H2: 450 | I2: 35 | J2: 20.5 | K2: 67.7 | L2: 28
A3: 2018-03-03 | B3: 2018-09-05 | C3: 4650 | D3: 595 | E3: 1550 | F3: 1920 | G3: 1650 | H3: 470 | I3: 37 | J3: 21 | K3: 70 | L3: 30
A4: 2018-09-06 | B4: 2018-12-20 | C4: 5000 | D4: 600 | E4: 2000 | F4: 2500 | G4: 1800 | H4: 500 | I4: 45 | J4: 22 | K4: 75 | L4: 32

Sheet 1С списание
A1: Начало | B1: Окончание | C1: Продукция | D1: Цемент | E1: Песок строительный | F1: Песок растворный | G1: Гранит | H1: Гравий | I1: Вторичка | J1: Вода | K1: СП-3 | L1: Мурапор | M1: Криопласт | N1: Себестоимость | X1: Цены на инертные
A2: 2018-01-01 | B2: 2018-03-02 | C2: БСТ В7,5 П3 F100 W2 (Гравий) | D2: 333 | E2: 1000 | H2: 945 | J2: 180 | K2: 2.21 | N2: 35358.22
A3: 2018-03-03 | B3: 2018-03-05 | C3: БСТ В7,5 П3 F100 W2 (Гравий) | D3: 175 | E3: 850 | H3: 1040 | J3: 175 | L3: 1.8 | N3: 3167.98
A4: 2018-01-01 | B4: 2018-03-02 | C4: БСТ В7,5 П3 F100 W2 (Гравий) | D4: 180 | E4: 920 | H4: 1000 | J4: 135 | M4: 2.3 | N4: 20112.55
A5: 2018-09-06 | B5: 2018-12-12 | C5: БСТ В7,5 П3 F100 W2 (Гравий) | D5: 180 | E5: 920 | H5: 1000 | J5: 133 | K5: 2.21

Sheet Отгрузка
A2: Дата
A4: Накладная
A6: Контрагент
A8: Госномер ТС
A10: Продукция
A12: Количество
A14: Доставка
A16: Примечание
F18: =SUBTOTAL(9,Отгрузка[Количество]) -> 8 | G18: =SUBTOTAL(9,Отгрузка[Стоимость]) -> 6850 | H18: =SUBTOTAL(9,Отгрузка[Доставка]) -> 620 | I18: =SUBTOTAL(9,Отгрузка[ИТОГО]) -> 29950 | J18: =SUBTOTAL(9,Отгрузка[Порожний прогон]) -> 2860 | K18: =SUBTOTAL(9,Отгрузка[Простой]) -> 350 | L18: =SUBTOTAL(9,Отгрузка[Стоимость ИТОГО]) -> 33160
A19: Дата | B19: Накладная | C19: Контрагент | D19: Госномер ТС | E19: Продукция | F19: Количество | G19: Стоимость | H19: Доставка | I19: ИТОГО | J19: Порожний прогон | K19: Простой | L19: Стоимость ИТОГО | M19: Поставщик | N19: Примечание
A20: 2018-03-03 | C20: ООО "Атика" | D20: у573мт199 | E20: БСТ В7,5 П3 F100 W2 (Гравий) | F20: 3 | G20: =SUMPRODUCT(Спецификация[Цена]*(Спецификация[Продукция]=Отгрузка[[#This Row],[Продукция]])*(Спецификация[Контрагент]=Отгрузка[[#This Row],[Контрагент]])*(Спецификация[Начало]<=Отгрузка[[#This Row],[Дата]])*((Спецификация[Окончание]="")*99999+Спецификация[Окончание]>=Отгрузка[[#This Row],[Дата]])) -> 3200 | H20: 500 | I20: =Отгрузка[[#This Row],[Количество]]*Отгрузка[[#This Row],[Стоимость]]+Отгрузка[[#This Row],[Доставка]]*Отгрузка[[#This Row],[Количество]] -> 11100 | J20: =IFERROR(MAX(,MIN(VLOOKUP(Отгрузка[[#This Row],[Госномер ТС]],АБС[[Госномер ТС]:[Объем]],5,),7+(LEFTB(VLOOKUP(Отгрузка[[#This Row],[Госномер ТС]],АБС[[Госномер ТС]:[Ось]],6,))="4"))-Отгрузка[[#This Row],[Количество]])*Отгрузка[[#This Row],[Доставка]],) -> 2500 | K20: 350 | L20: =Отгрузка[[#This Row],[ИТОГО]]+Отгрузка[[#This Row],[Порожний прогон]]+Отгрузка[[#This Row],[Простой]] -> 13950 | M20: =IFERROR(IF(INDEX(АБС[Поставщик],MATCH(Отгрузка!$D20,АБС[Госномер ТС],0))=Отгрузка[[#This Row],[Контрагент]],"Самовывоз",INDEX(АБС[Поставщик],MATCH(Отгрузка!$D20,АБС[Госномер ТС],0))),"") -> Ч/Л "Мифтахов"
A21: 2018-03-07 | B21: 5 | C21: ООО "Атика" | D21: н877ке77 | E21: БСТ В25 П4 F300 W10 (Гранит) | F21: 5 | G21: =SUMPRODUCT(Спецификация[Цена]*(Спецификация[Продукция]=Отгрузка[[#This Row],[Продукция]])*(Спецификация[Контрагент]=Отгрузка[[#This Row],[Контрагент]])*(Спецификация[Начало]<=Отгрузка[[#This Row],[Дата]])*((Спецификация[Окончание]="")*99999+Спецификация[Окончание]>=Отгрузка[[#This Row],[Дата]])) -> 3650 | H21: 120 | I21: =Отгрузка[[#This Row],[Количество]]*Отгрузка[[#This Row],[Стоимость]]+Отгрузка[[#This Row],[Доставка]]*Отгрузка[[#This Row],[Количество]] -> 18850 | J21: =IFERROR(MAX(,MIN(VLOOKUP(Отгрузка[[#This Row],[Госномер ТС]],АБС[[Госномер ТС]:[Объем]],5,),7+(LEFTB(VLOOKUP(Отгрузка[[#This Row],[Госномер ТС]],АБС[[Госномер ТС]:[Ось]],6,))="4"))-Отгрузка[[#This Row],[Количество]])*Отгрузка[[#This Row],[Доставка]],) -> 360 | L21: =Отгрузка[[#This Row],[ИТОГО]]+Отгрузка[[#This Row],[Порожний прогон]]+Отгрузка[[#This Row],[Простой]] -> 19210 | M21: =IFERROR(IF(INDEX(АБС[Поставщик],MATCH(Отгрузка!$D21,АБС[Госномер ТС],0))=Отгрузка[[#This Row],[Контрагент]],"Самовывоз",INDEX(АБС[Поставщик],MATCH(Отгрузка!$D21,АБС[Госномер ТС],0))),"") -> ООО "Аист" | N21: аааа

Sheet Завод
A1: Дата | B1: Госномер ТС | C1: Продукция | D1: Количество | E1: Заезд | F1: Выезд | G1: Списание по норме завода | H1: Цемент "завод" | I1: Песок строительный "завод" | J1: Песок растворный "завод" | K1: Гранит "завод" | L1: Гравий "завод" | M1: Вторичка "завод" | N1: Вода "завод" | O1: СП-3 "завод" | P1: Мурапор "завод" | Q1: Криопласт "завод" | R1: Списание по норме | S1: Цемент | T1: Песок строительный | U1: Песок растворный | V1: Гранит | W1: Гравий | X1: Вторичка | Y1: Вода | Z1: СП-3 | AA1: Мурапор | AB1: Криопласт | AC1: Расхождения | AD1: Цемент (расхождение) | AE1: Песок строительный (расхождение) | AF1: Песок растворный (расхождение) | AG1: Гранит (расхождение) | AH1: Гравий (расхождение) | AI1: Вторичка (расхождение) | AJ1: Вода (расхождение) | AK1: СП-3 (расхождение) | AL1: Мурапор (расхождение) | AM1: Криопласт (расхождение)
A2: 2018-01-01 | B2: к187ус77 | C2: БСТ В7,5 П3 F100 W2 (Гравий) | D2: 3 | H2: =IFERROR(SUMPRODUCT(Списание_завод[Цемент]*(Списание_завод[Продукция]=SUBSTITUTE(C2,MID(C2,FIND("F",C2),8),))*(Списание_завод[Начало]<=A2)*((Списание_завод[Окончание]="")*99999+Списание_завод[Окончание]>=A2)),) -> 160 | I2: =IFERROR(SUMPRODUCT(Списание_завод[Песок строительный]*(Списание_завод[Продукция]=SUBSTITUTE(C2,MID(C2,FIND("F",C2),8),))*(Списание_завод[Начало]<=A2)*((Списание_завод[Окончание]="")*99999+Списание_завод[Окончание]>=A2)),) -> 980 | J2: =IFERROR(SUMPRODUCT(Списание_завод[Песок растворный]*(Списание_завод[Продукция]=SUBSTITUTE(C2,MID(C2,FIND("F",C2),8),))*(Списание_завод[Начало]<=A2)*((Списание_завод[Окончание]="")*99999+Списание_завод[Окончание]>=A2)),) -> 0 | K2: =IFERROR(SUMPRODUCT(Списание_завод[Гранит]*(Списание_завод[Продукция]=SUBSTITUTE(C2,MID(C2,FIND("F",C2),8),))*(Списание_завод[Начало]<=A2)*((Списание_завод[Окончание]="")*99999+Списание_завод[Окончание]>=A2)),) -> 0 | L2: =IFERROR(SUMPRODUCT(Списание_завод[Гравий]*(Списание_завод[Продукция]=SUBSTITUTE(C2,MID(C2,FIND("F",C2),8),))*(Списание_завод[Начало]<=A2)*((Списание_завод[Окончание]="")*99999+Списание_завод[Окончание]>=A2)),) -> 935 | M2: =IFERROR(SUMPRODUCT(Списание_завод[Вторичка]*(Списание_завод[Продукция]=SUBSTITUTE(C2,MID(C2,FIND("F",C2),8),))*(Списание_завод[Начало]<=A2)*((Списание_завод[Окончание]="")*99999+Списание_завод[Окончание]>=A2)),) -> 0 | N2: =IFERROR(SUMPRODUCT(Списание_завод[Вода]*(Списание_завод[Продукция]=SUBSTITUTE(C2,MID(C2,FIND("F",C2),8),))*(Списание_завод[Начало]<=A2)*((Списание_завод[Окончание]="")*99999+Списание_завод[Окончание]>=A2)),) -> 175 | O2: =IFERROR(SUMPRODUCT(Списание_завод[СП-3]*(Списание_завод[Продукция]=SUBSTITUTE(C2,MID(C2,FIND("F",C2),8),))*(Списание_завод[Начало]<=A2)*((Списание_завод[Окончание]="")*99999+Списание_завод[Окончание]>=A2)),) -> 2.21 | P2: =IFERROR(SUMPRODUCT(Списание_завод[Мурапор]*(Списание_завод[Продукция]=SUBSTITUTE(C2,MID(C2,FIND("F",C2),8),))*(Списание_завод[Начало]<=A2)*((Списание_завод[Окончание]="")*99999+Списание_завод[Окончание]>=A2)),) -> 0 | Q2: =IFERROR(SUMPRODUCT(Списание_завод[Криопласт]*(Списание_завод[Продукция]=SUBSTITUTE(C2,MID(C2,FIND("F",C2),8),))*(Списание_завод[Начало]<=A2)*((Списание_завод[Окончание]="")*99999+Списание_завод[Окончание]>=A2)),) -> 0 | S2: =IFERROR(SUMPRODUCT(Списание[Цемент]*(Списание[Продукция]=C2)*(Списание[Начало]<=A2)*((Списание[Окончание]="")*99999+Списание[Окончание]>=A2)),) -> 513 | T2: =IFERROR(SUMPRODUCT(Списание[Песок строительный]*(Списание[Продукция]=C2)*(Списание[Начало]<=A2)*((Списание[Окончание]="")*99999+Списание[Окончание]>=A2)),) -> 1920 | U2: =IFERROR(SUMPRODUCT(Списание[Песок растворный]*(Списание[Продукция]=C2)*(Списание[Начало]<=A2)*((Списание[Окончание]="")*99999+Списание[Окончание]>=A2)),) -> 0 | V2: =IFERROR(SUMPRODUCT(Списание[Гранит]*(Списание[Продукция]=C2)*(Списание[Начало]<=A2)*((Списание[Окончание]="")*99999+Списание[Окончание]>=A2)),) -> 0 | W2: =IFERROR(SUMPRODUCT(Списание[Гравий]*(Списание[Продукция]=C2)*(Списание[Начало]<=A2)*((Списание[Окончание]="")*99999+Списание[Окончание]>=A2)),) -> 1945 | X2: =IFERROR(SUMPRODUCT(Списание[Вторичка]*(Списание[Продукция]=C2)*(Списание[Начало]<=A2)*((Списание[Окончание]="")*99999+Списание[Окончание]>=A2)),) -> 0 | Y2: =IFERROR(SUMPRODUCT(Списание[Вода]*(Списание[Продукция]=C2)*(Списание[Начало]<=A2)*((Списание[Окончание]="")*99999+Списание[Окончание]>=A2)),) -> 315 | Z2: =IFERROR(SUMPRODUCT(Списание[СП-3]*(Списание[Продукция]=C2)*(Списание[Начало]<=A2)*((Списание[Окончание]="")*99999+Списание[Окончание]>=A2)),) -> 2.21 | AA2: =IFERROR(SUMPRODUCT(Списание[Мурапор]*(Списание[Продукция]=C2)*(Списание[Начало]<=A2)*((Списание[Окончание]="")*99999+Списание[Окончание]>=A2)),) -> 0 | AB2: =IFERROR(SUMPRODUCT(Списание[Криопласт]*(Списание[Продукция]=C2)*(Списание[Начало]<=A2)*((Списание[Окончание]="")*99999+Списание[Окончание]>=A2)),) -> 2.3 | AD2: =Завод[[#This Row],[Цемент]]-Завод[[#This Row],[Цемент "завод"]] -> 353 | AE2: =Завод[[#This Row],[Песок строительный]]-Завод[[#This Row],[Песок строительный "завод"]] -> 940 | AF2: =Завод[[#This Row],[Песок растворный]]-Завод[[#This Row],[Песок растворный "завод"]] -> 0 | AG2: =Завод[[#This Row],[Гранит]]-Завод[[#This Row],[Гранит "завод"]] -> 0 | AH2: =Завод[[#This Row],[Гравий]]-Завод[[#This Row],[Гравий "завод"]] -> 1010 | AI2: =Завод[[#This Row],[Вторичка]]-Завод[[#This Row],[Вторичка "завод"]] -> 0 | AJ2: =Завод[[#This Row],[Вода]]-Завод[[#This Row],[Вода "завод"]] -> 140 | AK2: =Завод[[#This Row],[СП-3]]-Завод[[#This Row],[СП-3 "завод"]] -> 0 | AL2: =Завод[[#This Row],[Мурапор]]-Завод[[#This Row],[Мурапор "завод"]] -> 0 | AM2: =Завод[[#This Row],[Криопласт]]-Завод[[#This Row],[Криопласт "завод"]] -> 2.3
A3: 2018-03-03 | B3: н001тс777 | C3: БСТ В7,5 П3 F100 W2 (Гравий) | D3: 2 | H3: =IFERROR(SUMPRODUCT(Списание_завод[Цемент]*(Списание_завод[Продукция]=SUBSTITUTE(C3,MID(C3,FIND("F",C3),8),))*(Списание_завод[Начало]<=A3)*((Списание_завод[Окончание]="")*99999+Списание_завод[Окончание]>=A3)),) -> 150 | I3: =IFERROR(SUMPRODUCT(Списание_завод[Песок строительный]*(Списание_завод[Продукция]=SUBSTITUTE(C3,MID(C3,FIND("F",C3),8),))*(Списание_завод[Начало]<=A3)*((Списание_завод[Окончание]="")*99999+Списание_завод[Окончание]>=A3)),) -> 970 | J3: =IFERROR(SUMPRODUCT(Списание_завод[Песок растворный]*(Списание_завод[Продукция]=SUBSTITUTE(C3,MID(C3,FIND("F",C3),8),))*(Списание_завод[Начало]<=A3)*((Списание_завод[Окончание]="")*99999+Списание_завод[Окончание]>=A3)),) -> 0 | K3: =IFERROR(SUMPRODUCT(Списание_завод[Гранит]*(Списание_завод[Продукция]=SUBSTITUTE(C3,MID(C3,FIND("F",C3),8),))*(Списание_завод[Начало]<=A3)*((Списание_завод[Окончание]="")*99999+Списание_завод[Окончание]>=A3)),) -> 0 | L3: =IFERROR(SUMPRODUCT(Списание_завод[Гравий]*(Списание_завод[Продукция]=SUBSTITUTE(C3,MID(C3,FIND("F",C3),8),))*(Списание_завод[Начало]<=A3)*((Списание_завод[Окончание]="")*99999+Списание_завод[Окончание]>=A3)),) -> 1000 | M3: =IFERROR(SUMPRODUCT(Списание_завод[Вторичка]*(Списание_завод[Продукция]=SUBSTITUTE(C3,MID(C3,FIND("F",C3),8),))*(Списание_завод[Начало]<=A3)*((Списание_завод[Окончание]="")*99999+Списание_завод[Окончание]>=A3)),) -> 0 | N3: =IFERROR(SUMPRODUCT(Списание_завод[Вода]*(Списание_завод[Продукция]=SUBSTITUTE(C3,MID(C3,FIND("F",C3),8),))*(Списание_завод[Начало]<=A3)*((Списание_завод[Окончание]="")*99999+Списание_завод[Окончание]>=A3)),) -> 165 | O3: =IFERROR(SUMPRODUCT(Списание_завод[СП-3]*(Списание_завод[Продукция]=SUBSTITUTE(C3,MID(C3,FIND("F",C3),8),))*(Списание_завод[Начало]<=A3)*((Списание_завод[Окончание]="")*99999+Списание_завод[Окончание]>=A3)),) -> 0 | P3: =IFERROR(SUMPRODUCT(Списание_завод[Мурапор]*(Списание_завод[Продукция]=SUBSTITUTE(C3,MID(C3,FIND("F",C3),8),))*(Списание_завод[Начало]<=A3)*((Списание_завод[Окончание]="")*99999+Списание_завод[Окончание]>=A3)),) -> 1.8 | Q3: =IFERROR(SUMPRODUCT(Списание_завод[Криопласт]*(Списание_завод[Продукция]=SUBSTITUTE(C3,MID(C3,FIND("F",C3),8),))*(Списание_завод[Начало]<=A3)*((Списание_завод[Окончание]="")*99999+Списание_завод[Окончание]>=A3)),) -> 0 | S3: =IFERROR(SUMPRODUCT(Списание[Цемент]*(Списание[Продукция]=C3)*(Списание[Начало]<=A3)*((Списание[Окончание]="")*99999+Списание[Окончание]>=A3)),) -> 175 | T3: =IFERROR(SUMPRODUCT(Списание[Песок строительный]*(Списание[Продукция]=C3)*(Списание[Начало]<=A3)*((Списание[Окончание]="")*99999+Списание[Окончание]>=A3)),) -> 850 | U3: =IFERROR(SUMPRODUCT(Списание[Песок растворный]*(Списание[Продукция]=C3)*(Списание[Начало]<=A3)*((Списание[Окончание]="")*99999+Списание[Окончание]>=A3)),) -> 0 | V3: =IFERROR(SUMPRODUCT(Списание[Гранит]*(Списание[Продукция]=C3)*(Списание[Начало]<=A3)*((Списание[Окончание]="")*99999+Списание[Окончание]>=A3)),) -> 0 | W3: =IFERROR(SUMPRODUCT(Списание[Гравий]*(Списание[Продукция]=C3)*(Списание[Начало]<=A3)*((Списание[Окончание]="")*99999+Списание[Окончание]>=A3)),) -> 1040 | X3: =IFERROR(SUMPRODUCT(Списание[Вторичка]*(Списание[Продукция]=C3)*(Списание[Начало]<=A3)*((Списание[Окончание]="")*99999+Списание[Окончание]>=A3)),) -> 0 | Y3: =IFERROR(SUMPRODUCT(Списание[Вода]*(Списание[Продукция]=C3)*(Списание[Начало]<=A3)*((Списание[Окончание]="")*99999+Списание[Окончание]>=A3)),) -> 175 | Z3: =IFERROR(SUMPRODUCT(Списание[СП-3]*(Списание[Продукция]=C3)*(Списание[Начало]<=A3)*((Списание[Окончание]="")*99999+Списание[Окончание]>=A3)),) -> 0 | AA3: =IFERROR(SUMPRODUCT(Списание[Мурапор]*(Списание[Продукция]=C3)*(Списание[Начало]<=A3)*((Списание[Окончание]="")*99999+Списание[Окончание]>=A3)),) -> 1.8 | AB3: =IFERROR(SUMPRODUCT(Списание[Криопласт]*(Списание[Продукция]=C3)*(Списание[Начало]<=A3)*((Списание[Окончание]="")*99999+Списание[Окончание]>=A3)),) -> 0 | AD3: =Завод[[#This Row],[Цемент]]-Завод[[#This Row],[Цемент "завод"]] -> 25 | AE3: =Завод[[#This Row],[Песок строительный]]-Завод[[#This Row],[Песок строительный "завод"]] -> -120 | AF3: =Завод[[#This Row],[Песок растворный]]-Завод[[#This Row],[Песок растворный "завод"]] -> 0 | AG3: =Завод[[#This Row],[Гранит]]-Завод[[#This Row],[Гранит "завод"]] -> 0 | AH3: =Завод[[#This Row],[Гравий]]-Завод[[#This Row],[Гравий "завод"]] -> 40 | AI3: =Завод[[#This Row],[Вторичка]]-Завод[[#This Row],[Вторичка "завод"]] -> 0 | AJ3: =Завод[[#This Row],[Вода]]-Завод[[#This Row],[Вода "завод"]] -> 10 | AK3: =Завод[[#This Row],[СП-3]]-Завод[[#This Row],[СП-3 "завод"]] -> 0 | AL3: =Завод[[#This Row],[Мурапор]]-Завод[[#This Row],[Мурапор "завод"]] -> 0 | AM3: =Завод[[#This Row],[Криопласт]]-Завод[[#This Row],[Криопласт "завод"]] -> 0
H4: =IFERROR(SUMPRODUCT(Списание_завод[Цемент]*(Списание_завод[Продукция]=SUBSTITUTE(C4,MID(C4,FIND("F",C4),8),))*(Списание_завод[Начало]<=A4)*((Списание_завод[Окончание]="")*99999+Списание_завод[Окончание]>=A4)),) -> 0 | I4: =IFERROR(SUMPRODUCT(Списание_завод[Песок строительный]*(Списание_завод[Продукция]=SUBSTITUTE(C4,MID(C4,FIND("F",C4),8),))*(Списание_завод[Начало]<=A4)*((Списание_завод[Окончание]="")*99999+Списание_завод[Окончание]>=A4)),) -> 0 | J4: =IFERROR(SUMPRODUCT(Списание_завод[Песок растворный]*(Списание_завод[Продукция]=SUBSTITUTE(C4,MID(C4,FIND("F",C4),8),))*(Списание_завод[Начало]<=A4)*((Списание_завод[Окончание]="")*99999+Списание_завод[Окончание]>=A4)),) -> 0 | K4: =IFERROR(SUMPRODUCT(Списание_завод[Гранит]*(Списание_завод[Продукция]=SUBSTITUTE(C4,MID(C4,FIND("F",C4),8),))*(Списание_завод[Начало]<=A4)*((Списание_завод[Окончание]="")*99999+Списание_завод[Окончание]>=A4)),) -> 0 | L4: =IFERROR(SUMPRODUCT(Списание_завод[Гравий]*(Списание_завод[Продукция]=SUBSTITUTE(C4,MID(C4,FIND("F",C4),8),))*(Списание_завод[Начало]<=A4)*((Списание_завод[Окончание]="")*99999+Списание_завод[Окончание]>=A4)),) -> 0 | M4: =IFERROR(SUMPRODUCT(Списание_завод[Вторичка]*(Списание_завод[Продукция]=SUBSTITUTE(C4,MID(C4,FIND("F",C4),8),))*(Списание_завод[Начало]<=A4)*((Списание_завод[Окончание]="")*99999+Списание_завод[Окончание]>=A4)),) -> 0 | N4: =IFERROR(SUMPRODUCT(Списание_завод[Вода]*(Списание_завод[Продукция]=SUBSTITUTE(C4,MID(C4,FIND("F",C4),8),))*(Списание_завод[Начало]<=A4)*((Списание_завод[Окончание]="")*99999+Списание_завод[Окончание]>=A4)),) -> 0 | O4: =IFERROR(SUMPRODUCT(Списание_завод[СП-3]*(Списание_завод[Продукция]=SUBSTITUTE(C4,MID(C4,FIND("F",C4),8),))*(Списание_завод[Начало]<=A4)*((Списание_завод[Окончание]="")*99999+Списание_завод[Окончание]>=A4)),) -> 0 | P4: =IFERROR(SUMPRODUCT(Списание_завод[Мурапор]*(Списание_завод[Продукция]=SUBSTITUTE(C4,MID(C4,FIND("F",C4),8),))*(Списание_завод[Начало]<=A4)*((Списание_завод[Окончание]="")*99999+Списание_завод[Окончание]>=A4)),) -> 0 | Q4: =IFERROR(SUMPRODUCT(Списание_завод[Криопласт]*(Списание_завод[Продукция]=SUBSTITUTE(C4,MID(C4,FIND("F",C4),8),))*(Списание_завод[Начало]<=A4)*((Списание_завод[Окончание]="")*99999+Списание_завод[Окончание]>=A4)),) -> 0 | S4: =IFERROR(SUMPRODUCT(Списание[Цемент]*(Списание[Продукция]=C4)*(Списание[Начало]<=A4)*((Списание[Окончание]="")*99999+Списание[Окончание]>=A4)),) -> 0 | T4: =IFERROR(SUMPRODUCT(Списание[Песок строительный]*(Списание[Продукция]=C4)*(Списание[Начало]<=A4)*((Списание[Окончание]="")*99999+Списание[Окончание]>=A4)),) -> 0 | U4: =IFERROR(SUMPRODUCT(Списание[Песок растворный]*(Списание[Продукция]=C4)*(Списание[Начало]<=A4)*((Списание[Окончание]="")*99999+Списание[Окончание]>=A4)),) -> 0 | V4: =IFERROR(SUMPRODUCT(Списание[Гранит]*(Списание[Продукция]=C4)*(Списание[Начало]<=A4)*((Списание[Окончание]="")*99999+Списание[Окончание]>=A4)),) -> 0 | W4: =IFERROR(SUMPRODUCT(Списание[Гравий]*(Списание[Продукция]=C4)*(Списание[Начало]<=A4)*((Списание[Окончание]="")*99999+Списание[Окончание]>=A4)),) -> 0 | X4: =IFERROR(SUMPRODUCT(Списание[Вторичка]*(Списание[Продукция]=C4)*(Списание[Начало]<=A4)*((Списание[Окончание]="")*99999+Списание[Окончание]>=A4)),) -> 0 | Y4: =IFERROR(SUMPRODUCT(Списание[Вода]*(Списание[Продукция]=C4)*(Списание[Начало]<=A4)*((Списание[Окончание]="")*99999+Списание[Окончание]>=A4)),) -> 0 | Z4: =IFERROR(SUMPRODUCT(Списание[СП-3]*(Списание[Продукция]=C4)*(Списание[Начало]<=A4)*((Списание[Окончание]="")*99999+Списание[Окончание]>=A4)),) -> 0 | AA4: =IFERROR(SUMPRODUCT(Списание[Мурапор]*(Списание[Продукция]=C4)*(Списание[Начало]<=A4)*((Списание[Окончание]="")*99999+Списание[Окончание]>=A4)),) -> 0 | AB4: =IFERROR(SUMPRODUCT(Списание[Криопласт]*(Списание[Продукция]=C4)*(Списание[Начало]<=A4)*((Списание[Окончание]="")*99999+Списание[Окончание]>=A4)),) -> 0 | AD4: =Завод[[#This Row],[Цемент]]-Завод[[#This Row],[Цемент "завод"]] -> 0 | AE4: =Завод[[#This Row],[Песок строительный]]-Завод[[#This Row],[Песок строительный "завод"]] -> 0 | AF4: =Завод[[#This Row],[Песок растворный]]-Завод[[#This Row],[Песок растворный "завод"]] -> 0 | AG4: =Завод[[#This Row],[Гранит]]-Завод[[#This Row],[Гранит "завод"]] -> 0 | AH4: =Завод[[#This Row],[Гравий]]-Завод[[#This Row],[Гравий "завод"]] -> 0 | AI4: =Завод[[#This Row],[Вторичка]]-Завод[[#This Row],[Вторичка "завод"]] -> 0 | AJ4: =Завод[[#This Row],[Вода]]-Завод[[#This Row],[Вода "завод"]] -> 0 | AK4: =Завод[[#This Row],[СП-3]]-Завод[[#This Row],[СП-3 "завод"]] -> 0 | AL4: =Завод[[#This Row],[Мурапор]]-Завод[[#This Row],[Мурапор "завод"]] -> 0 | AM4: =Завод[[#This Row],[Криопласт]]-Завод[[#This Row],[Криопласт "завод"]] -> 0
H5: =IFERROR(SUMPRODUCT(Списание_завод[Цемент]*(Списание_завод[Продукция]=SUBSTITUTE(C5,MID(C5,FIND("F",C5),8),))*(Списание_завод[Начало]<=A5)*((Списание_завод[Окончание]="")*99999+Списание_завод[Окончание]>=A5)),) -> 0 | I5: =IFERROR(SUMPRODUCT(Списание_завод[Песок строительный]*(Списание_завод[Продукция]=SUBSTITUTE(C5,MID(C5,FIND("F",C5),8),))*(Списание_завод[Начало]<=A5)*((Списание_завод[Окончание]="")*99999+Списание_завод[Окончание]>=A5)),) -> 0 | J5: =IFERROR(SUMPRODUCT(Списание_завод[Песок растворный]*(Списание_завод[Продукция]=SUBSTITUTE(C5,MID(C5,FIND("F",C5),8),))*(Списание_завод[Начало]<=A5)*((Списание_завод[Окончание]="")*99999+Списание_завод[Окончание]>=A5)),) -> 0 | K5: =IFERROR(SUMPRODUCT(Списание_завод[Гранит]*(Списание_завод[Продукция]=SUBSTITUTE(C5,MID(C5,FIND("F",C5),8),))*(Списание_завод[Начало]<=A5)*((Списание_завод[Окончание]="")*99999+Списание_завод[Окончание]>=A5)),) -> 0 | L5: =IFERROR(SUMPRODUCT(Списание_завод[Гравий]*(Списание_завод[Продукция]=SUBSTITUTE(C5,MID(C5,FIND("F",C5),8),))*(Списание_завод[Начало]<=A5)*((Списание_завод[Окончание]="")*99999+Списание_завод[Окончание]>=A5)),) -> 0 | M5: =IFERROR(SUMPRODUCT(Списание_завод[Вторичка]*(Списание_завод[Продукция]=SUBSTITUTE(C5,MID(C5,FIND("F",C5),8),))*(Списание_завод[Начало]<=A5)*((Списание_завод[Окончание]="")*99999+Списание_завод[Окончание]>=A5)),) -> 0 | N5: =IFERROR(SUMPRODUCT(Списание_завод[Вода]*(Списание_завод[Продукция]=SUBSTITUTE(C5,MID(C5,FIND("F",C5),8),))*(Списание_завод[Начало]<=A5)*((Списание_завод[Окончание]="")*99999+Списание_завод[Окончание]>=A5)),) -> 0 | O5: =IFERROR(SUMPRODUCT(Списание_завод[СП-3]*(Списание_завод[Продукция]=SUBSTITUTE(C5,MID(C5,FIND("F",C5),8),))*(Списание_завод[Начало]<=A5)*((Списание_завод[Окончание]="")*99999+Списание_завод[Окончание]>=A5)),) -> 0 | P5: =IFERROR(SUMPRODUCT(Списание_завод[Мурапор]*(Списание_завод[Продукция]=SUBSTITUTE(C5,MID(C5,FIND("F",C5),8),))*(Списание_завод[Начало]<=A5)*((Списание_завод[Окончание]="")*99999+Списание_завод[Окончание]>=A5)),) -> 0 | Q5: =IFERROR(SUMPRODUCT(Списание_завод[Криопласт]*(Списание_завод[Продукция]=SUBSTITUTE(C5,MID(C5,FIND("F",C5),8),))*(Списание_завод[Начало]<=A5)*((Списание_завод[Окончание]="")*99999+Списание_завод[Окончание]>=A5)),) -> 0 | S5: =IFERROR(SUMPRODUCT(Списание[Цемент]*(Списание[Продукция]=C5)*(Списание[Начало]<=A5)*((Списание[Окончание]="")*99999+Списание[Окончание]>=A5)),) -> 0 | T5: =IFERROR(SUMPRODUCT(Списание[Песок строительный]*(Списание[Продукция]=C5)*(Списание[Начало]<=A5)*((Списание[Окончание]="")*99999+Списание[Окончание]>=A5)),) -> 0 | U5: =IFERROR(SUMPRODUCT(Списание[Песок растворный]*(Списание[Продукция]=C5)*(Списание[Начало]<=A5)*((Списание[Окончание]="")*99999+Списание[Окончание]>=A5)),) -> 0 | V5: =IFERROR(SUMPRODUCT(Списание[Гранит]*(Списание[Продукция]=C5)*(Списание[Начало]<=A5)*((Списание[Окончание]="")*99999+Списание[Окончание]>=A5)),) -> 0 | W5: =IFERROR(SUMPRODUCT(Списание[Гравий]*(Списание[Продукция]=C5)*(Списание[Начало]<=A5)*((Списание[Окончание]="")*99999+Списание[Окончание]>=A5)),) -> 0 | X5: =IFERROR(SUMPRODUCT(Списание[Вторичка]*(Списание[Продукция]=C5)*(Списание[Начало]<=A5)*((Списание[Окончание]="")*99999+Списание[Окончание]>=A5)),) -> 0 | Y5: =IFERROR(SUMPRODUCT(Списание[Вода]*(Списание[Продукция]=C5)*(Списание[Начало]<=A5)*((Списание[Окончание]="")*99999+Списание[Окончание]>=A5)),) -> 0 | Z5: =IFERROR(SUMPRODUCT(Списание[СП-3]*(Списание[Продукция]=C5)*(Списание[Начало]<=A5)*((Списание[Окончание]="")*99999+Списание[Окончание]>=A5)),) -> 0 | AA5: =IFERROR(SUMPRODUCT(Списание[Мурапор]*(Списание[Продукция]=C5)*(Списание[Начало]<=A5)*((Списание[Окончание]="")*99999+Списание[Окончание]>=A5)),) -> 0 | AB5: =IFERROR(SUMPRODUCT(Списание[Криопласт]*(Списание[Продукция]=C5)*(Списание[Начало]<=A5)*((Списание[Окончание]="")*99999+Списание[Окончание]>=A5)),) -> 0 | AD5: =Завод[[#This Row],[Цемент]]-Завод[[#This Row],[Цемент "завод"]] -> 0 | AE5: =Завод[[#This Row],[Песок строительный]]-Завод[[#This Row],[Песок строительный "завод"]] -> 0 | AF5: =Завод[[#This Row],[Песок растворный]]-Завод[[#This Row],[Песок растворный "завод"]] -> 0 | AG5: =Завод[[#This Row],[Гранит]]-Завод[[#This Row],[Гранит "завод"]] -> 0 | AH5: =Завод[[#This Row],[Гравий]]-Завод[[#This Row],[Гравий "завод"]] -> 0 | AI5: =Завод[[#This Row],[Вторичка]]-Завод[[#This Row],[Вторичка "завод"]] -> 0 | AJ5: =Завод[[#This Row],[Вода]]-Завод[[#This Row],[Вода "завод"]] -> 0 | AK5: =Завод[[#This Row],[СП-3]]-Завод[[#This Row],[СП-3 "завод"]] -> 0 | AL5: =Завод[[#This Row],[Мурапор]]-Завод[[#This Row],[Мурапор "завод"]] -> 0 | AM5: =Завод[[#This Row],[Криопласт]]-Завод[[#This Row],[Криопласт "завод"]] -> 0
H6: =IFERROR(SUMPRODUCT(Списание_завод[Цемент]*(Списание_завод[Продукция]=SUBSTITUTE(C6,MID(C6,FIND("F",C6),8),))*(Списание_завод[Начало]<=A6)*((Списание_завод[Окончание]="")*99999+Списание_завод[Окончание]>=A6)),) -> 0 | I6: =IFERROR(SUMPRODUCT(Списание_завод[Песок строительный]*(Списание_завод[Продукция]=SUBSTITUTE(C6,MID(C6,FIND("F",C6),8),))*(Списание_завод[Начало]<=A6)*((Списание_завод[Окончание]="")*99999+Списание_завод[Окончание]>=A6)),) -> 0 | J6: =IFERROR(SUMPRODUCT(Списание_завод[Песок растворный]*(Списание_завод[Продукция]=SUBSTITUTE(C6,MID(C6,FIND("F",C6),8),))*(Списание_завод[Начало]<=A6)*((Списание_завод[Окончание]="")*99999+Списание_завод[Окончание]>=A6)),) -> 0 | K6: =IFERROR(SUMPRODUCT(Списание_завод[Гранит]*(Списание_завод[Продукция]=SUBSTITUTE(C6,MID(C6,FIND("F",C6),8),))*(Списание_завод[Начало]<=A6)*((Списание_завод[Окончание]="")*99999+Списание_завод[Окончание]>=A6)),) -> 0 | L6: =IFERROR(SUMPRODUCT(Списание_завод[Гравий]*(Списание_завод[Продукция]=SUBSTITUTE(C6,MID(C6,FIND("F",C6),8),))*(Списание_завод[Начало]<=A6)*((Списание_завод[Окончание]="")*99999+Списание_завод[Окончание]>=A6)),) -> 0 | M6: =IFERROR(SUMPRODUCT(Списание_завод[Вторичка]*(Списание_завод[Продукция]=SUBSTITUTE(C6,MID(C6,FIND("F",C6),8),))*(Списание_завод[Начало]<=A6)*((Списание_завод[Окончание]="")*99999+Списание_завод[Окончание]>=A6)),) -> 0 | N6: =IFERROR(SUMPRODUCT(Списание_завод[Вода]*(Списание_завод[Продукция]=SUBSTITUTE(C6,MID(C6,FIND("F",C6),8),))*(Списание_завод[Начало]<=A6)*((Списание_завод[Окончание]="")*99999+Списание_завод[Окончание]>=A6)),) -> 0 | O6: =IFERROR(SUMPRODUCT(Списание_завод[СП-3]*(Списание_завод[Продукция]=SUBSTITUTE(C6,MID(C6,FIND("F",C6),8),))*(Списание_завод[Начало]<=A6)*((Списание_завод[Окончание]="")*99999+Списание_завод[Окончание]>=A6)),) -> 0 | P6: =IFERROR(SUMPRODUCT(Списание_завод[Мурапор]*(Списание_завод[Продукция]=SUBSTITUTE(C6,MID(C6,FIND("F",C6),8),))*(Списание_завод[Начало]<=A6)*((Списание_завод[Окончание]="")*99999+Списание_завод[Окончание]>=A6)),) -> 0 | Q6: =IFERROR(SUMPRODUCT(Списание_завод[Криопласт]*(Списание_завод[Продукция]=SUBSTITUTE(C6,MID(C6,FIND("F",C6),8),))*(Списание_завод[Начало]<=A6)*((Списание_завод[Окончание]="")*99999+Списание_завод[Окончание]>=A6)),) -> 0 | S6: =IFERROR(SUMPRODUCT(Списание[Цемент]*(Списание[Продукция]=C6)*(Списание[Начало]<=A6)*((Списание[Окончание]="")*99999+Списание[Окончание]>=A6)),) -> 0 | T6: =IFERROR(SUMPRODUCT(Списание[Песок строительный]*(Списание[Продукция]=C6)*(Списание[Начало]<=A6)*((Списание[Окончание]="")*99999+Списание[Окончание]>=A6)),) -> 0 | U6: =IFERROR(SUMPRODUCT(Списание[Песок растворный]*(Списание[Продукция]=C6)*(Списание[Начало]<=A6)*((Списание[Окончание]="")*99999+Списание[Окончание]>=A6)),) -> 0 | V6: =IFERROR(SUMPRODUCT(Списание[Гранит]*(Списание[Продукция]=C6)*(Списание[Начало]<=A6)*((Списание[Окончание]="")*99999+Списание[Окончание]>=A6)),) -> 0 | W6: =IFERROR(SUMPRODUCT(Списание[Гравий]*(Списание[Продукция]=C6)*(Списание[Начало]<=A6)*((Списание[Окончание]="")*99999+Списание[Окончание]>=A6)),) -> 0 | X6: =IFERROR(SUMPRODUCT(Списание[Вторичка]*(Списание[Продукция]=C6)*(Списание[Начало]<=A6)*((Списание[Окончание]="")*99999+Списание[Окончание]>=A6)),) -> 0 | Y6: =IFERROR(SUMPRODUCT(Списание[Вода]*(Списание[Продукция]=C6)*(Списание[Начало]<=A6)*((Списание[Окончание]="")*99999+Списание[Окончание]>=A6)),) -> 0 | Z6: =IFERROR(SUMPRODUCT(Списание[СП-3]*(Списание[Продукция]=C6)*(Списание[Начало]<=A6)*((Списание[Окончание]="")*99999+Списание[Окончание]>=A6)),) -> 0 | AA6: =IFERROR(SUMPRODUCT(Списание[Мурапор]*(Списание[Продукция]=C6)*(Списание[Начало]<=A6)*((Списание[Окончание]="")*99999+Списание[Окончание]>=A6)),) -> 0 | AB6: =IFERROR(SUMPRODUCT(Списание[Криопласт]*(Списание[Продукция]=C6)*(Списание[Начало]<=A6)*((Списание[Окончание]="")*99999+Списание[Окончание]>=A6)),) -> 0 | AD6: =Завод[[#This Row],[Цемент]]-Завод[[#This Row],[Цемент "завод"]] -> 0 | AE6: =Завод[[#This Row],[Песок строительный]]-Завод[[#This Row],[Песок строительный "завод"]] -> 0 | AF6: =Завод[[#This Row],[Песок растворный]]-Завод[[#This Row],[Песок растворный "завод"]] -> 0 | AG6: =Завод[[#This Row],[Гранит]]-Завод[[#This Row],[Гранит "завод"]] -> 0 | AH6: =Завод[[#This Row],[Гравий]]-Завод[[#This Row],[Гравий "завод"]] -> 0 | AI6: =Завод[[#This Row],[Вторичка]]-Завод[[#This Row],[Вторичка "завод"]] -> 0 | AJ6: =Завод[[#This Row],[Вода]]-Завод[[#This Row],[Вода "завод"]] -> 0 | AK6: =Завод[[#This Row],[СП-3]]-Завод[[#This Row],[СП-3 "завод"]] -> 0 | AL6: =Завод[[#This Row],[Мурапор]]-Завод[[#This Row],[Мурапор "завод"]] -> 0 | AM6: =Завод[[#This Row],[Криопласт]]-Завод[[#This Row],[Криопласт "завод"]] -> 0

Sheet Списание завод
A1: Начало | B1: Окончание | C1: Продукция | D1: Цемент | E1: Песок строительный | F1: Песок растворный | G1: Гранит | H1: Гравий | I1: Вторичка | J1: Вода | K1: СП-3 | L1: Мурапор | M1: Криопласт | N1: Себестоимость | Y1: Цены на инертные
A2: 2018-01-01 | B2: 2018-03-02 | C2: БСТ В7,5 П3 (Гравий) | D2: 160 | E2: 980 | H2: 935 | J2: 175 | K2: 2.21 | N2: =IFERROR(SUMPRODUCT(INDEX(Цены_инертные[[Цемент]:[Криопласт]],SUMPRODUCT(ROW(Цены_инертные[Начало])*(Цены_инертные[Начало]>0)*(Цены_инертные[Начало]<=Списание_завод[[#This Row],[Начало]])*((Цены_инертные[Окончание]="")*99999+Цены_инертные[Окончание]>=Списание_завод[[#This Row],[Окончание]]))-1,)*Списание_завод[[#This Row],[Цемент]:[Криопласт]]/1000^(COLUMN(Списание_завод[[#This Row],[Цемент]:[Криопласт]])<COLUMN(Списание_завод[[#This Row],[СП-3]]))),) -> 2032.48
A3: 2018-03-03 | B3: 2018-03-05 | C3: БСТ В7,5 П3 (Гравий) | D3: 150 | E3: 970 | H3: 1000 | J3: 165 | L3: 1.8 | N3: =IFERROR(SUMPRODUCT(INDEX(Цены_инертные[[Цемент]:[Криопласт]],SUMPRODUCT(ROW(Цены_инертные[Начало])*(Цены_инертные[Начало]>0)*(Цены_инертные[Начало]<=Списание_завод[[#This Row],[Начало]])*((Цены_инертные[Окончание]="")*99999+Цены_инертные[Окончание]>=Списание_завод[[#This Row],[Окончание]]))-1,)*Списание_завод[[#This Row],[Цемент]:[Криопласт]]/1000^(COLUMN(Списание_завод[[#This Row],[Цемент]:[Криопласт]])<COLUMN(Списание_завод[[#This Row],[СП-3]]))),) -> 3056.755
D4: 140 | N4: =IFERROR(SUMPRODUCT(INDEX(Цены_инертные[[Цемент]:[Криопласт]],SUMPRODUCT(ROW(Цены_инертные[Начало])*(Цены_инертные[Начало]>0)*(Цены_инертные[Начало]<=Списание_завод[[#This Row],[Начало]])*((Цены_инертные[Окончание]="")*99999+Цены_инертные[Окончание]>=Списание_завод[[#This Row],[Окончание]]))-1,)*Списание_завод[[#This Row],[Цемент]:[Криопласт]]/1000^(COLUMN(Списание_завод[[#This Row],[Цемент]:[Криопласт]])<COLUMN(Списание_завод[[#This Row],[СП-3]]))),) -> 0
N5: =IFERROR(SUMPRODUCT(INDEX(Цены_инертные[[Цемент]:[Криопласт]],SUMPRODUCT(ROW(Цены_инертные[Начало])*(Цены_инертные[Начало]>0)*(Цены_инертные[Начало]<=Списание_завод[[#This Row],[Начало]])*((Цены_инертные[Окончание]="")*99999+Цены_инертные[Окончание]>=Списание_завод[[#This Row],[Окончание]]))-1,)*Списание_завод[[#This Row],[Цемент]:[Криопласт]]/1000^(COLUMN(Списание_завод[[#This Row],[Цемент]:[Криопласт]])<COLUMN(Списание_завод[[#This Row],[СП-3]]))),) -> 0

Sheet Приход
K8: =SUBTOTAL(9,Приход[Нетто для бухгалтерии]) -> 0
A9: Дата | B9: Поставщик | C9: Материал | D9: Вид поставки | E9: № ТС/Вагона | F9: № Накладной | G9: Брутто, (т) | H9: Тара, (т) | I9: Нетто, (т) | J9: Нетто по накладным, (т) | K9: Нетто для бухгалтерии
A10: 2018-10-21 | B10: ООО "Атика" | C10: Цемент | D10: Т/С | I10: =Приход[[#This Row],[Брутто, (т)]]-Приход[[#This Row],[Тара, (т)]] -> 0 | K10: =SMALL(Приход[[#This Row],[Нетто, (т)]:[Нетто по накладным, (т)]],1) -> 0
C11: Криопласт | I11: =Приход[[#This Row],[Брутто, (т)]]-Приход[[#This Row],[Тара, (т)]] -> 0 | K11: =SMALL(Приход[[#This Row],[Нетто, (т)]:[Нетто по накладным, (т)]],1) -> 0
I12: =Приход[[#This Row],[Брутто, (т)]]-Приход[[#This Row],[Тара, (т)]] -> 0 | K12: =SMALL(Приход[[#This Row],[Нетто, (т)]:[Нетто по накладным, (т)]],1) -> 0
I13: =Приход[[#This Row],[Брутто, (т)]]-Приход[[#This Row],[Тара, (т)]] -> 0 | K13: =SMALL(Приход[[#This Row],[Нетто, (т)]:[Нетто по накладным, (т)]],1) -> 0
I14: =Приход[[#This Row],[Брутто, (т)]]-Приход[[#This Row],[Тара, (т)]] -> 0 | K14: =SMALL(Приход[[#This Row],[Нетто, (т)]:[Нетто по накладным, (т)]],1) -> 0
I15: =Приход[[#This Row],[Брутто, (т)]]-Приход[[#This Row],[Тара, (т)]] -> 0 | K15: =SMALL(Приход[[#This Row],[Нетто, (т)]:[Нетто по накладным, (т)]],1) -> 0
I16: =Приход[[#This Row],[Брутто, (т)]]-Приход[[#This Row],[Тара, (т)]] -> 0 | K16: =SMALL(Приход[[#This Row],[Нетто, (т)]:[Нетто по накладным, (т)]],1) -> 0
I17: =Приход[[#This Row],[Брутто, (т)]]-Приход[[#This Row],[Тара, (т)]] -> 0 | K17: =SMALL(Приход[[#This Row],[Нетто, (т)]:[Нетто по накладным, (т)]],1) -> 0
I18: =Приход[[#This Row],[Брутто, (т)]]-Приход[[#This Row],[Тара, (т)]] -> 0 | K18: =SMALL(Приход[[#This Row],[Нетто, (т)]:[Нетто по накладным, (т)]],1) -> 0
I19: =Приход[[#This Row],[Брутто, (т)]]-Приход[[#This Row],[Тара, (т)]] -> 0 | K19: =SMALL(Приход[[#This Row],[Нетто, (т)]:[Нетто по накладным, (т)]],1) -> 0
I20: =Приход[[#This Row],[Брутто, (т)]]-Приход[[#This Row],[Тара, (т)]] -> 0 | K20: =SMALL(Приход[[#This Row],[Нетто, (т)]:[Нетто по накладным, (т)]],1) -> 0
I21: =Приход[[#This Row],[Брутто, (т)]]-Приход[[#This Row],[Тара, (т)]] -> 0 | K21: =SMALL(Приход[[#This Row],[Нетто, (т)]:[Нетто по накладным, (т)]],1) -> 0
I22: =Приход[[#This Row],[Брутто, (т)]]-Приход[[#This Row],[Тара, (т)]] -> 0 | K22: =SMALL(Приход[[#This Row],[Нетто, (т)]:[Нетто по накладным, (т)]],1) -> 0
I23: =Приход[[#This Row],[Брутто, (т)]]-Приход[[#This Row],[Тара, (т)]] -> 0 | K23: =SMALL(Приход[[#This Row],[Нетто, (т)]:[Нетто по накладным, (т)]],1) -> 0
I24: =Приход[[#This Row],[Брутто, (т)]]-Приход[[#This Row],[Тара, (т)]] -> 0 | K24: =SMALL(Приход[[#This Row],[Нетто, (т)]:[Нетто по накладным, (т)]],1) -> 0
